bitfinex-derivatives/quotes_ETHF0:USTF0_20250727
["timestamp","ask_amount","ask_price","bid_price","bid_amount"]
[1753595302712,1.38996,3785.4,3785.3,3.0759]
[1753595302908,0.52814,3785.6,3785.3,4.1536]
[1753595303204,0.52812,3785.7,3785.6,1.7137]
[1753595303513,0.52811,3785.8,3785.7,1.7137]
[1753595303701,0.8618,3785.9,3785.7,2.4399]
[1753595303904,0.8618,3786.1,3785.8,2.4399]
[1753595304106,0.8618,3786.1,3786.0,4.68167]
[1753595304305,6.1061,3786.1,3786.0,27.69917]
[1753595304707,4.7696,3786.1,3786.0,28.33517]
[1753595304906,0.8618,3786.1,3786.0,28.33517]
[1753595306316,1.71574679,3786.1,3786.0,28.33517]
[1753595307811,0.8618,3786.1,3786.0,28.33517]
[1753595308312,3.0059,3786.1,3786.0,28.33517]
[1753595310506,3.7443,3786.4,3786.3,0.52803]
[1753595310810,5.293,3786.4,3786.3,27.71623]
[1753595311306,6.1565,3786.4,3786.3,27.71623]
[1753595312214,6.68452,3786.4,3786.3,23.6607]
[1753595312418,0.8635,3785.6,3785.5,1.4242]
[1753595312616,6.1891,3785.6,3785.5,26.63564]
[1753595313116,6.1891,3785.6,3785.5,27.71134]
[1753595313315,6.1891,3785.6,3785.5,22.191]
[1753595313512,0.52817,3785.4,3785.2,5.7077]
[1753595313714,6.71727,3785.4,3785.3,27.1802]
[1753595314415,6.71727,3785.4,3785.3,22.19]
[1753595314817,0.52818,3785.2,3785.1,38.024]
[1753595315119,6.71728,3785.2,3785.1,62.7109]
[1753595315315,6.1891,3785.2,3785.1,63.2391]
[1753595315910,6.1891,3785.2,3785.1,63.346]
[1753595316115,6.1891,3785.2,3785.1,63.2391]
[1753595317319,6.1891,3785.2,3785.1,63.2351]
[1753595318122,2.406,3785.2,3785.1,63.8702]
[1753595318821,2.9766,3785.2,3785.1,63.8702]
[1753595319219,6.1891,3785.2,3785.1,63.8702]
[1753595323129,6.1891,3785.2,3785.1,63.2351]
[1753595324717,6.1891,3785.2,3785.1,63.8702]
[1753595325118,6.1891,3785.2,3785.1,63.2351]
[1753595326523,6.1891,3785.2,3785.1,41.0521]
[1753595326724,6.1891,3785.2,3785.1,63.2181]
[1753595327219,6.71728,3785.2,3785.1,63.2181]
[1753595327523,6.1891,3785.2,3785.1,63.2181]
[1753595330620,6.1891,3785.2,3785.1,63.8532]
[1753595331228,6.1891,3785.2,3785.1,63.2181]
[1753595331428,6.1891,3785.2,3785.1,41.0521]
[1753595331729,6.1891,3785.2,3785.1,63.2051]
[1753595332730,6.1891,3785.2,3785.1,63.8402]
[1753595332925,0.8635,3785.5,3785.4,2.4903]
[1753595333229,0.8635,3785.5,3785.4,28.30446]
[1753595334130,4.3088,3785.5,3785.4,28.30446]
[1753595334329,6.1891,3786.1,3786.0,4.9902]
[1753595334530,6.71716,3786.1,3786.0,24.6343]
[1753595334725,6.71716,3786.1,3786.0,22.144]
[1753595335224,2.97902,3785.7,3785.5,1.60383]
[1753595335423,6.1891,3785.6,3785.5,1.60383]
[1753595335628,6.71723,3785.6,3785.5,22.142]
[1753595336025,6.1891,3785.6,3785.5,22.67014]
[1753595336226,6.1891,3785.6,3785.5,26.78344]
[1753595336432,6.1891,3785.6,3785.5,27.66034]
[1753595338833,6.71723,3785.6,3785.5,25.708]
[1753595339131,6.71723,3785.6,3785.5,22.142]
[1753595339330,6.71723,3785.6,3785.5,22.67014]
[1753595339331,6.1891,3785.6,3785.5,22.67014]
[1753595339732,6.1891,3785.6,3785.5,24.27054]
[1753595339933,0.8635,3785.6,3785.5,28.22254]
[1753595340632,2.3248,3785.6,3785.5,28.22254]
[1753595341227,0.9215,3785.9,3785.8,5.0529]
[1753595341428,0.9215,3785.9,3785.8,28.207]
[1753595341629,2.3828,3785.9,3785.8,28.207]
[1753595341828,2.9568,3785.9,3785.8,28.207]
[1753595342033,5.9805,3785.9,3785.8,28.207]
[1753595342424,5.9805,3785.9,3785.8,27.572]
[1753595342633,5.9805,3785.9,3785.8,27.0439]
[1753595342936,5.9805,3785.9,3785.8,22.127]
[1753595343137,6.50859,3785.9,3785.8,22.127]
[1753595343328,5.9805,3785.9,3785.8,22.127]
[1753595343529,2.3481,3785.6,3785.2,1.0243]
[1753595343734,5.9805,3785.6,3785.5,0.52813]
[1753595343929,5.9805,3785.6,3785.5,22.64913]
[1753595344136,5.9805,3785.6,3785.5,23.67343]
[1753595344336,5.9805,3785.6,3785.5,22.64913]
[1753595344535,5.9805,3785.6,3785.5,23.67343]
[1753595345035,5.9805,3785.6,3785.5,22.119]
[1753595345231,6.50863,3785.6,3785.5,22.119]
[1753595345436,5.9805,3785.6,3785.5,22.64714]
[1753595345936,5.9805,3785.6,3785.5,22.119]
[1753595346436,5.9805,3785.6,3785.5,23.1433]
[1753595346633,6.50863,3785.6,3785.5,22.119]
[1753595347033,2.3481,3785.3,3785.2,1.55248]
[1753595347236,5.9805,3785.3,3785.2,23.66448]
[1753595347436,5.9805,3785.3,3785.2,26.71308]
[1753595347633,5.9805,3785.3,3785.2,27.55708]
[1753595348230,5.9805,3785.3,3785.1,38.024]
[1753595348445,6.50867,3785.3,3785.2,22.112]
[1753595348741,6.50868,3785.2,3785.1,38.024]
[1753595348940,9.71648,3785.2,3785.1,60.133]
[1753595349241,9.1883,3785.2,3785.1,60.133]
[1753595349434,5.9805,3785.2,3785.1,60.133]
[1753595349635,9.1883,3785.2,3785.1,60.133]
[1753595349935,9.71648,3785.2,3785.1,60.133]
[1753595350136,9.1883,3785.2,3785.1,60.133]
[1753595350331,5.9805,3785.2,3785.1,63.1355]
[1753595350743,5.9805,3785.2,3785.1,62.6073]
[1753595350942,5.9805,3785.2,3785.1,63.1355]
[1753595351343,5.9805,3785.2,3785.1,62.6073]
[1753595351745,6.50868,3785.2,3785.1,62.6073]
[1753595352144,5.9805,3785.2,3785.1,62.6073]
[1753595352346,6.50868,3785.2,3785.1,61.1573]
[1753595352539,5.9805,3785.2,3785.1,61.6855]
[1753595352744,5.9805,3785.2,3785.1,63.1355]
[1753595353644,3.2078,3785.3,3785.2,2.97078]
[1753595353840,3.2078,3785.3,3785.2,6.08008]
[1753595354244,4.1293,3785.3,3785.2,6.08008]
[1753595355240,0.9215,3785.3,3785.2,6.08008]
[1753595355841,1.4955,3785.3,3785.2,6.08008]
[1753595356048,2.9568,3785.3,3785.2,6.08008]
[1753595356641,0.9215,3785.3,3785.2,6.08008]
[1753595360149,2.3828,3785.6,3785.5,2.97074]
[1753595360343,2.9568,3785.6,3785.5,28.16204]
[1753595360652,4.2064,3785.6,3785.5,28.16204]
[1753595360849,5.9805,3785.6,3785.5,28.16204]
[1753595361652,5.9805,3785.6,3785.5,27.52704]
[1753595364049,2.3481,3785.3,3785.2,4.9169]
[1753595364244,5.9805,3785.3,3785.2,25.04198]
[1753595364450,5.9805,3785.3,3785.2,22.60218]
[1753595364646,5.9805,3785.3,3785.2,0.52818]
[1753595364846,5.9805,3785.3,3785.2,22.071]
[1753595365044,6.50867,3785.3,3785.2,22.071]
[1753595365752,5.9805,3785.3,3785.2,22.59918]
[1753595365950,6.50867,3785.3,3785.2,22.071]
[1753595367251,6.50868,3785.2,3785.1,38.024]
[1753595367550,9.71648,3785.2,3785.1,60.088]
[1753595369752,9.71648,3785.2,3785.1,36.04471486]
[1753595370056,9.71648,3785.2,3785.1,58.10671486]
[1753595372252,9.71648,3785.2,3785.1,22.062]
[1753595372854,9.1883,3785.2,3785.1,27.4401]
[1753595373253,9.71648,3785.2,3785.1,27.4401]
[1753595373853,9.1883,3785.2,3785.1,27.4401]
[1753595374353,5.9805,3785.2,3785.1,27.4401]
[1753595375456,6.50868,3785.2,3785.1,26.9119]
[1753595375658,5.9805,3785.2,3785.1,26.9119]
[1753595376252,6.50868,3785.2,3785.1,26.9119]
[1753595377651,6.50868,3785.2,3785.1,25.4596]
[1753595378055,6.50868,3785.2,3785.1,24.6095]
[1753595378456,6.71191,3785.0,3784.9,3.9998]
[1753595378654,6.71191,3785.0,3784.9,26.0378]
[1753595379153,5.78295,3784.7,3784.6,4.8499]
[1753595379356,6.71195,3784.7,3784.6,26.8859]
[1753595379755,6.71195,3784.7,3784.6,27.41317]
[1753595380152,6.71195,3784.7,3784.6,26.8849]
[1753595381155,6.71195,3784.7,3784.6,4.8499]
[1753595381460,6.71195,3784.7,3784.6,26.8849]
[1753595383559,6.71195,3784.7,3784.6,4.8499]
[1753595383756,6.71195,3784.7,3784.6,26.8759]
[1753595384660,9.91975,3784.7,3784.6,26.8759]
[1753595385361,3.2078,3784.7,3784.6,28.04057]
[1753595385563,4.66505,3784.7,3784.6,27.5123]
[1753595385757,4.1368,3784.7,3784.6,27.5123]
[1753595386159,4.1368,3784.7,3784.6,28.04057]
[1753595387656,9.3915,3784.7,3784.6,28.04057]
[1753595387858,9.91975,3784.7,3784.6,27.5123]
[1753595388059,9.3915,3784.7,3784.6,28.04057]
[1753595388667,9.3915,3784.7,3784.6,27.5123]
[1753595389066,9.3915,3784.7,3784.6,28.04057]
[1753595389961,9.91975,3784.7,3784.6,26.8759]
[1753595390161,9.3915,3784.7,3784.6,27.40417]
[1753595390361,9.3915,3784.7,3784.6,28.04057]
[1753595390757,4.1368,3784.7,3784.6,28.04057]
[1753595391772,7.5136,3784.7,3784.6,28.04057]
[1753595392567,6.2132,3784.7,3784.6,28.04057]
[1753595393072,9.3915,3784.7,3784.6,27.40417]
[1753595393471,9.3915,3784.7,3784.6,28.04057]
[1753595393867,8.0911,3784.7,3784.6,28.04057]
[1753595394971,4.1368,3784.7,3784.6,28.04057]
[1753595395364,5.5921,3784.7,3784.6,28.04057]
[1753595395564,7.5136,3784.7,3784.6,28.04057]
[1753595396377,8.388,3784.7,3784.6,28.04057]
[1753595396775,9.3915,3784.7,3784.6,28.04057]
[1753595397369,6.1837,3784.7,3784.6,28.04057]
[1753595401378,6.1837,3784.7,3784.6,27.40417]
[1753595403081,6.1837,3784.7,3784.6,28.03947]
[1753595403884,2.3491,3784.7,3784.6,28.03947]
[1753595404089,5.9533,3784.7,3784.6,28.03947]
[1753595408887,5.9533,3784.7,3784.6,27.40417]
[1753595411487,0.929,3784.7,3784.6,28.03937]
[1753595412291,0.5635,3785.2,3784.9,0.52823]
[1753595412597,1.9836,3785.4,3785.3,2.92177]
[1753595412788,5.0243,3785.9,3785.8,0.5281]
[1753595412987,6.76332692,3785.9,3785.8,27.2525]
[1753595413691,5.9053,3785.9,3785.8,27.2525]
[1753595416194,5.9053,3785.9,3785.8,27.8877]
[1753595416394,2.8646,3785.9,3785.8,27.8877]
[1753595417796,5.9053,3785.9,3785.8,27.8877]
[1753595418094,5.9053,3785.9,3785.8,27.2525]
[1753595419394,2.768,3785.5,3785.4,4.7724]
[1753595419596,5.9053,3785.5,3785.4,27.23156]
[1753595419789,5.9053,3785.5,3785.4,25.79716]
[1753595420386,5.9053,3785.5,3785.4,24.85276]
[1753595420596,5.9053,3785.5,3785.4,22.45916]
[1753595422799,5.9053,3785.5,3785.4,21.931]
[1753595423400,5.9053,3785.5,3785.4,22.45916]
[1753595423898,5.9053,3785.5,3785.4,21.931]
[1753595424396,5.9053,3785.5,3785.4,22.45916]
[1753595426394,5.9053,3785.5,3785.4,25.42416]
[1753595426599,5.9053,3785.5,3785.4,27.23156]
[1753595427095,4.6682,3785.5,3785.4,27.86766]
[1753595427494,5.8857,3785.5,3785.4,27.86766]
[1753595427799,2.4598,3784.9,3784.8,3.2078]
[1753595428008,6.087,3784.7,3784.6,5.1443]
[1753595428302,6.087,3784.5,3784.4,2.0539]
[1753595428702,6.087,3784.5,3784.4,4.123]
[1753595429004,6.087,3784.5,3784.4,5.1443]
[1753595429397,6.61528,3784.5,3784.4,27.0503]
[1753595431297,6.61528,3784.5,3784.4,27.6851]
[1753595431298,0.8951,3784.5,3784.4,27.6851]
[1753595431503,0.8951,3785.1,3784.8,3.3214]
[1753595431697,0.8951,3785.6,3785.5,1.4364]
[1753595431900,2.5254,3785.6,3785.5,27.6821]
[1753595432099,6.087,3785.6,3785.5,27.0473]
[1753595440705,6.61513,3785.6,3785.5,27.0473]
[1753595441803,6.087,3785.3,3785.2,2.0539]
[1753595442003,6.087,3785.3,3785.2,27.0243]
[1753595443202,6.61517,3785.3,3785.2,27.0243]
[1753595443400,6.61517,3785.3,3785.2,25.5728]
[1753595444005,6.087,3785.3,3785.2,3.6948]
[1753595444307,6.61517,3785.3,3785.2,25.5728]
[1753595444702,6.61517,3785.3,3785.2,27.0223]
[1753595445102,6.087,3785.3,3785.2,27.0223]
[1753595446405,6.087,3785.3,3785.2,27.55048]
[1753595446706,0.6093,3786.0,3785.9,6.32289]
[1753595446906,0.6093,3786.2,3786.1,6.32286]
[1753595447103,0.8951,3786.2,3786.1,28.18986]
[1753595447299,2.5254,3786.6,3786.5,6.3228]
[1753595447499,2.5254,3786.6,3786.5,28.1888]
[1753595447904,1.5044,3786.6,3786.5,28.1888]
[1753595448212,3.2078,3787.0,3786.9,6.32275]
[1753595448406,3.2078,3787.0,3786.9,28.18775]
[1753595449206,9.2948,3787.0,3786.9,5.16]
[1753595449408,9.2948,3787.0,3786.9,21.862]
[1753595449602,6.087,3786.7,3786.6,1.2371]
[1753595449808,6.087,3786.7,3786.6,21.861]
[1753595450209,6.087,3786.5,3786.4,0.8168]
[1753595450408,6.087,3786.5,3786.4,24.3177]
[1753595450707,6.087,3786.5,3786.4,27.54802]
[1753595450903,6.087,3786.5,3786.4,27.02]
[1753595452110,6.087,3786.5,3786.4,27.54802]
[1753595452513,0.52795,3786.9,3786.4,27.54802]
[1753595452514,3.019,3786.8,3786.7,6.32277]
[1753595452708,3.019,3786.8,3786.7,28.17477]
[1753595453014,0.8951,3786.8,3786.7,28.17477]
[1753595456615,3.2078,3787.0,3786.9,5.08565]
[1753595456814,3.2078,3787.0,3786.9,28.16875]
[1753595457011,4.1029,3787.0,3786.9,28.16875]
[1753595457512,6.2242,3787.0,3786.9,28.16875]
[1753595457917,7.2487,3787.0,3786.9,28.16875]
[1753595458113,9.2988,3787.0,3786.9,22.6538]
[1753595458510,4.8603,3785.8,3785.7,6.58531]
[1753595458710,4.1906,3786.1,3786.0,4.8774]
[1753595458915,3.2078,3786.6,3786.0,4.8774]
[1753595458916,2.74777046,3786.5,3786.4,5.05692]
[1753595459115,2.74777046,3786.5,3786.4,28.42122]
[1753595459514,3.61147046,3786.5,3786.4,27.8932]
[1753595459713,4.66917046,3786.5,3786.4,27.8932]
[1753595459908,4.66917046,3786.5,3786.4,6.0572]
[1753595460117,4.66917046,3786.5,3786.4,27.8932]
[1753595460314,5.49967046,3786.5,3786.4,28.42122]
[1753595462213,3.61147046,3786.5,3786.4,28.42122]
[1753595462516,2.4846,3786.5,3786.4,28.42122]
[1753595463117,3.2078,3786.6,3786.5,6.5852]
[1753595463615,3.2078,3787.0,3786.9,1.41735]
[1753595463816,3.2078,3787.0,3786.9,28.41615]
[1753595464018,3.8042,3787.0,3786.9,28.41615]
[1753595464218,4.6679,3787.0,3786.9,28.41615]
[1753595464821,2.4846,3787.2,3787.1,6.58512]
[1753595465019,2.4846,3787.2,3787.1,28.41512]
[1753595465720,3.9966,3787.2,3787.1,28.41512]
[1753595465918,5.8848,3787.2,3787.1,28.41512]
[1753595468420,5.8848,3787.2,3787.1,26.9928]
[1753595468626,5.8848,3787.2,3787.1,0.837]
[1753595468824,5.8848,3787.2,3787.1,22.661]
[1753595469525,6.41271,3787.2,3787.1,21.822]
[1753595470228,5.8848,3787.0,3786.9,38.023]
[1753595470528,9.0926,3787.0,3786.9,59.845]
[1753595470729,9.62053,3787.0,3786.9,59.845]
[1753595471028,9.62053,3787.0,3786.9,38.023]
[1753595471229,9.62053,3787.0,3786.9,59.843]
[1753595472531,3.8042,3787.4,3787.3,6.0572]
[1753595472830,8.2621,3787.4,3787.3,27.8772]
[1753595473127,9.0926,3787.4,3787.3,28.40509]
[1753595475831,8.0349,3787.4,3787.3,28.40509]
[1753595476025,5.6924,3787.4,3787.3,28.40509]
[1753595478228,7.2044,3787.4,3787.3,28.40509]
[1753595478435,9.1118,3787.4,3787.3,28.40509]
[1753595479131,9.1118,3787.4,3787.3,6.58509]
[1753595479438,5.6592,3787.4,3787.0,2.7081]
[1753595479635,2.4514,3787.2,3787.1,22.33492]
[1753595479936,5.904,3787.2,3787.1,22.33492]
[1753595480136,5.904,3787.2,3787.1,25.97442]
[1753595480337,5.904,3787.2,3787.1,27.50272]
[1753595481131,5.904,3787.2,3787.1,28.39212]
[1753595481736,5.904,3787.2,3787.1,27.8642]
[1753595482339,5.904,3787.2,3787.1,26.9748]
[1753595482539,5.904,3787.2,3787.1,23.16892]
[1753595482838,5.904,3787.2,3786.9,38.023]
[1753595482839,6.4319,3787.2,3786.9,38.023]
[1753595483039,9.1118,3787.0,3786.9,39.2028]
[1753595483337,9.1118,3787.0,3786.9,62.5341]
[1753595484234,9.1118,3787.0,3786.9,63.06205]
[1753595484834,9.1118,3787.0,3786.9,63.95145]
[1753595485037,3.2078,3787.0,3786.9,63.95145]
[1753595486341,3.8042,3787.0,3786.9,63.95145]
[1753595486539,7.2044,3787.0,3786.9,63.95145]
[1753595486836,8.2813,3787.0,3786.9,63.95145]
[1753595487935,3.8042,3787.0,3786.9,63.95145]
[1753595488134,3.2078,3787.0,3786.9,63.95145]
[1753595488530,0.8793,3787.3,3787.2,0.5279]
[1753595488736,0.8793,3787.3,3787.2,24.6952]
[1753595488935,1.4743,3787.3,3787.2,28.2762]
[1753595489130,5.0785,3787.6,3787.5,0.52786]
[1753595489340,4.5004,3787.9,3787.8,6.48112]
[1753595489641,6.0579,3787.9,3787.8,28.27512]
[1753595492341,4.2222,3787.9,3787.8,28.27512]
[1753595492540,2.6647,3787.9,3787.8,28.27512]
[1753595493644,0.2,3787.9,3787.8,28.27512]
[1753595496147,6.0579,3787.9,3787.8,6.48112]
[1753595496444,6.0579,3787.9,3787.8,27.34822]
[1753595496846,0.2,3787.9,3787.8,28.26412]
[1753595498847,6.0579,3787.9,3787.8,27.34622]
[1753595499143,0.2,3787.9,3787.8,28.26212]
[1753595499939,4.2222,3787.9,3787.8,28.26212]
[1753595500145,5.2785,3787.9,3787.8,28.26212]
[1753595501747,2.6647,3787.9,3787.8,28.26212]
[1753595502948,4.2222,3787.9,3787.8,28.26212]
[1753595503245,6.0579,3787.9,3787.8,28.26212]
[1753595506043,6.0579,3787.9,3787.8,26.8034]
[1753595506850,2.5648,3787.9,3787.8,21.766]
[1753595507049,6.0579,3787.9,3787.8,21.766]
[1753595507248,6.58571,3787.9,3787.8,21.766]
[1753595508147,3.9223,3787.4,3787.3,5.0374]
[1753595508449,5.8579,3787.4,3787.3,28.24419]
[1753595509344,5.8579,3787.4,3787.3,5.0374]
[1753595509550,5.8579,3787.4,3787.3,21.76]
[1753595510250,5.8579,3787.4,3787.3,22.28789]
[1753595510547,5.8579,3787.4,3787.3,23.10139]
[1753595510749,5.8579,3787.4,3787.3,27.32529]
[1753595510945,5.8579,3787.4,3787.3,28.24119]
[1753595516252,5.8579,3787.4,3787.3,27.32529]
[1753595518957,5.8579,3787.4,3787.3,24.06459]
[1753595519456,5.8579,3787.4,3787.3,25.22839]
[1753595519657,5.8579,3787.4,3787.3,26.66069]
[1753595520253,5.8579,3787.4,3787.3,27.22399]
[1753595522160,5.8579,3787.4,3787.3,28.09659]
[1753595525753,3.7845,3787.6,3787.5,6.31816]
[1753595525959,4.6491,3787.6,3787.5,28.05416]
[1753595526161,8.0979,3787.6,3787.5,28.05416]
[1753595526858,3.2078,3787.6,3787.5,28.05416]
[1753595530967,4.6491,3787.6,3787.5,28.05416]
[1753595531166,7.0852,3787.6,3787.5,28.05416]
[1753595531470,8.0979,3787.6,3787.5,28.05416]
[1753595531969,8.9173,3787.6,3787.5,28.05416]
[1753595532169,8.9173,3787.6,3787.5,1.90376]
[1753595532472,8.9173,3787.6,3787.5,23.06446]
[1753595532873,8.9173,3787.6,3787.5,25.66056]
[1753595533174,8.9173,3787.6,3787.5,26.22386]
[1753595533973,8.9173,3787.6,3787.5,2.5397]
[1753595534177,4.2656,3787.3,3787.2,5.4456]
[1753595534474,5.7095,3787.3,3787.2,28.0392]
[1753595535275,3.8774,3787.3,3787.2,28.0392]
[1753595537280,5.7095,3787.3,3787.2,23.0575]
[1753595537574,1.4413,3787.3,3787.2,28.0352]
[1753595538278,3.2078,3787.6,3787.5,2.84946]
[1753595538583,3.2078,3787.6,3787.5,28.03316]
[1753595538774,3.7845,3787.6,3787.5,28.03316]
[1753595539081,8.9173,3787.6,3787.5,28.03316]
[1753595540081,8.9173,3787.6,3787.5,27.16056]
[1753595545783,8.9173,3787.6,3787.5,28.03316]
[1753595546876,8.9173,3787.6,3787.5,26.6327]
[1753595547079,2.3883,3787.3,3787.2,3.124]
[1753595547382,2.3883,3787.3,3787.2,23.3907]
[1753595547383,5.678,3787.3,3787.2,23.3907]
[1753595548083,5.678,3787.3,3787.2,21.698]
[1753595548483,5.678,3787.3,3787.2,1.9179]
[1753595548881,6.20589,3787.3,3787.2,21.695]
[1753595549881,5.678,3787.3,3787.2,21.695]
[1753595550086,5.678,3787.3,3787.2,22.2229]
[1753595550278,5.678,3787.3,3787.2,21.695]
[1753595550475,5.678,3787.3,3787.2,22.2229]
[1753595550986,6.20589,3787.3,3787.2,21.695]
[1753595551288,2.375,3787.0,3786.9,38.023]
[1753595551584,9.40043,3787.0,3786.9,59.714]
[1753595555287,9.40043,3787.0,3786.9,38.023]
[1753595555489,9.40043,3787.0,3786.9,59.709]
[1753595555985,8.8725,3787.0,3786.9,60.8186]
[1753595556184,9.40043,3787.0,3786.9,40.6432]
[1753595556385,9.40043,3787.0,3786.9,62.3292]
[1753595562989,9.40043,3787.0,3786.9,62.3192]
[1753595563991,9.40043,3787.0,3786.9,38.023]
[1753595564189,9.40043,3787.0,3786.9,59.697]
[1753595564492,9.40043,3787.0,3786.9,38.023]
[1753595564693,9.40043,3787.0,3786.9,59.695]
[1753595564894,9.40043,3787.0,3786.9,38.023]
[1753595565193,9.40043,3787.0,3786.9,59.695]
[1753595566699,9.40043,3787.0,3786.9,38.023]
[1753595566899,9.40043,3787.0,3786.9,59.694]
[1753595567387,9.40043,3787.0,3786.9,21.671]
[1753595567588,2.903,3786.5,3786.4,4.9615]
[1753595567896,6.19274,3786.2,3786.1,5.8946]
[1753595568096,6.19274,3786.2,3786.1,24.1749]
[1753595568489,6.19274,3786.2,3786.1,26.6275]
[1753595568894,6.19274,3786.2,3786.1,27.5606]
[1753595569891,0.52804,3786.2,3786.1,27.5606]
[1753595570096,3.2078,3786.5,3786.4,2.3413]
[1753595570296,3.2078,3786.5,3786.4,27.5566]
[1753595570496,3.7358,3786.5,3786.4,27.5566]
[1753595571699,5.2589,3786.5,3786.4,27.5566]
[1753595572001,9.4005,3786.5,3786.4,27.5566]
[1753595573502,9.4005,3786.5,3786.4,26.6185]
[1753595574700,9.4005,3786.5,3786.4,27.5516]
[1753595580707,9.4005,3786.5,3786.4,28.07962]
[1753595581308,9.4005,3786.5,3786.4,27.5516]
[1753595582805,3.2078,3786.5,3786.4,28.07962]
[1753595583007,3.7358,3786.5,3786.4,27.5516]
[1753595583206,4.6073,3786.5,3786.4,27.5516]
[1753595583405,8.5558,3786.5,3786.4,27.5516]
[1753595584412,7.628,3786.5,3786.4,27.5516]
[1753595585315,3.2078,3786.5,3786.4,28.07962]
[1753595586307,3.2078,3786.5,3786.4,27.5516]
[1753595586507,9.3393,3786.5,3786.4,27.5296]
[1753595586707,3.2078,3786.5,3786.4,27.5296]
[1753595586912,3.2078,3786.5,3786.4,28.05762]
[1753595587114,3.2078,3786.5,3786.4,27.5296]
[1753595587416,3.2078,3786.5,3786.4,28.05762]
[1753595589413,4.0793,3787.2,3787.1,6.06132]
[1753595589611,4.0793,3787.2,3787.1,27.69032]
[1753595590210,4.0793,3787.2,3787.1,27.1624]
[1753595590715,4.6866,3787.2,3787.1,27.1624]
[1753595591111,4.6866,3787.2,3787.1,27.69032]
[1753595591311,1.4788,3787.2,3787.1,27.69032]
[1753595592419,1.4788,3787.2,3787.1,27.1624]
[1753595592716,4.031,3787.2,3787.1,27.1624]
[1753595592913,5.8086,3787.2,3787.1,27.69032]
[1753595593419,0.8715,3787.2,3787.1,27.69032]
[1753595594718,1.4788,3787.2,3787.1,27.69032]
[1753595595514,1.4788,3787.5,3787.4,6.06128]
[1753595595816,1.4788,3787.5,3787.4,27.67628]
[1753595596016,1.4788,3787.5,3787.4,27.1484]
[1753595596319,2.6117,3787.5,3787.4,27.1484]
[1753595596617,5.8086,3787.5,3787.4,26.5132]
[1753595596818,5.8086,3787.5,3787.4,27.04108]
[1753595597920,1.4788,3787.5,3787.4,27.67628]
[1753595598813,0.8715,3787.5,3787.4,27.67628]
[1753595599309,3.2078,3787.7,3787.6,0.52785]
[1753595599522,4.0793,3787.7,3787.6,27.66825]
[1753595599818,3.2078,3787.7,3787.6,27.66825]
[1753595603615,1.0715,3787.9,3787.6,27.66825]
[1753595603616,0.2,3787.9,3787.8,4.97012]
[1753595603918,0.8715,3788.1,3788.0,6.06119]
[1753595604120,0.8715,3788.1,3788.0,27.65719]
[1753595605221,0.8715,3788.1,3788.0,30.86499]
[1753595609925,5.8512,3788.8,3788.7,5.0735]
[1753595610224,5.8512,3788.8,3788.7,31.0262]
[1753595610426,1.4852,3788.8,3788.7,31.0262]
[1753595611124,5.8512,3788.8,3788.7,30.394]
[1753595611721,0.889,3788.8,3788.7,69.0392]
[1753595612627,1.39,3789.3,3789.2,1.3715]
[1753595612827,4.0096,3789.3,3789.2,27.2837]
[1753595613028,4.9802,3789.3,3789.2,31.01913]
[1753595613231,5.8692,3789.3,3789.2,30.38693]
[1753595614126,4.1228,3789.3,3789.2,31.01913]
[1753595614429,4.1228,3789.3,3789.2,30.38693]
[1753595614430,5.8692,3789.3,3789.2,30.38693]
[1753595615925,5.8692,3789.3,3789.2,3.2078]
[1753595615926,6.39681,3789.3,3789.2,3.2078]
[1753595616127,2.3606,3789.3,3789.2,21.572]
[1753595616427,2.3606,3789.3,3789.2,3.2078]
[1753595616629,6.39681,3789.3,3789.2,21.567]
[1753595617223,5.8692,3789.3,3789.2,24.7748]
[1753595617424,5.8692,3789.3,3789.2,21.567]
[1753595617631,6.39681,3789.3,3789.2,24.7748]
[1753595617832,5.8692,3789.3,3789.2,25.30243]
[1753595618032,5.8692,3789.3,3789.2,28.04833]
[1753595618232,5.8692,3789.3,3789.2,24.84053]
[1753595618435,5.8692,3789.3,3789.2,26.55293]
[1753595618834,5.8692,3789.3,3789.2,30.37593]
[1753595623140,6.39681,3789.3,3789.2,29.8483]
[1753595623334,6.39681,3789.3,3789.2,29.2331]
[1753595623537,5.8692,3789.3,3789.2,30.37593]
[1753595625040,2.4738,3789.3,3789.2,31.00813]
[1753595625535,5.8692,3789.3,3789.2,30.37593]
[1753595626338,4.4595,3789.3,3789.2,31.00813]
[1753595626740,5.8692,3789.3,3789.2,31.00813]
[1753595626939,5.8692,3789.3,3789.2,30.37593]
[1753595627633,0.52765,3789.1,3788.8,5.9537]
[1753595627838,5.8512,3788.9,3788.8,8.80898]
[1753595628139,3.2338,3789.3,3789.2,0.6152]
[1753595628336,2.4738,3789.3,3789.2,30.98613]
[1753595628841,2.4738,3789.3,3789.2,30.98413]
[1753595629536,0.907,3789.3,3789.2,30.98413]
[1753595629742,0.018,3789.3,3789.2,30.98413]
[1753595630040,1.5032,3789.3,3789.2,30.98413]
[1753595630238,2.7131,3789.3,3789.2,30.98413]
[1753595630439,4.1228,3789.3,3789.2,30.98413]